bitfinex/quotes_ETHUSD_20250508
["timestamp","ask_amount","ask_price","bid_price","bid_amount"]
[1746706981906,5.12979026,1968.9,1968.6,0.7511]
[1746706982142,5.07923608,1968.8,1968.3,3.7511]
[1746706982342,5.12992545,1968.8,1968.3,0.7511]
[1746706983126,5.12992545,1968.8,1968.0,0.7539]
[1746706983375,5.93752545,1968.8,1968.0,0.7539]
[1746706983713,5.98829062,1968.8,1968.0,3.80470922]
[1746706984124,5.18069062,1968.8,1968.4,0.7539]
[1746706988123,12.09069062,1968.8,1968.4,0.7539]
[1746706988331,12.03992545,1968.8,1968.4,0.7539]
[1746706989366,5.12992545,1968.8,1968.4,0.7539]
[1746706989662,5.18069062,1968.8,1968.4,0.7539]
[1746706990328,0.10145454,1968.8,1968.4,3.7539]
[1746706990727,5.18069062,1968.8,1968.4,0.7539]
[1746706992360,5.18069062,1968.8,1968.1,0.8179]
[1746706992539,5.73069062,1968.8,1968.1,0.8179]
[1746706993259,6.54169062,1968.8,1968.1,3.8179]
[1746706993563,5.18069062,1968.8,1968.1,8.94957228]
[1746706993736,5.18069062,1968.8,1968.3,3.0]
[1746706993942,5.18069062,1968.8,1968.3,8.08049503]
[1746706994129,5.18069062,1968.8,1968.2,8.08062392]
[1746706994440,0.10145454,1968.8,1968.4,8.08024071]
[1746706994638,0.10145454,1968.8,1968.3,8.13115365]
[1746706994843,0.05068937,1968.8,1968.5,3.0]
[1746706995550,0.05068937,1969.1,1968.7,1.240697]
[1746706995749,5.17992132,1969.1,1968.7,1.87272787]
[1746706995948,5.07874345,1969.0,1968.7,1.87272787]
[1746706996268,0.10145454,1969.1,1968.7,1.87272787]
[1746706996844,0.05068937,1969.1,1968.8,3.0]
[1746706997243,5.0775471,1969.5,1969.0,5.07870831]
[1746706997431,0.05068937,1969.3,1969.2,3.7654]
[1746706998128,0.05068937,1969.3,1969.2,8.89438016]
[1746706998330,5.0764519,1969.9,1969.4,5.07767296]
[1746706998331,0.05068937,1969.7,1969.4,5.07767296]
[1746706998542,0.05068937,1969.7,1969.5,2.12269779]
[1746706998854,0.05068937,1969.7,1969.3,5.07778087]
[1746706999758,0.05068937,1969.7,1969.3,10.15554754]
[1746707000072,0.05068937,1969.7,1969.4,6.09308117]
[1746707000249,0.05068937,1969.7,1969.5,5.07738171]
[1746707000433,0.05068937,1969.7,1969.6,0.7632]
[1746707000768,0.05068937,1969.7,1969.6,1.1745711]
[1746707001229,0.05068937,1969.7,1969.6,0.7632]
[1746707005063,0.05076517,1969.8,1969.6,0.7632]
[1746707005064,0.05068937,1969.8,1969.6,0.7632]
[1746707005261,0.05068937,1969.8,1969.6,2.05862308]
[1746707005448,5.17823249,1969.8,1969.6,1.1745711]
[1746707005654,5.12760463,1969.7,1969.3,1.2202711]
[1746707005948,5.12805835,1969.6,1969.3,1.2202711]
[1746707006360,0.05076517,1969.6,1969.3,0.8089]
[1746707006765,0.05068937,1969.5,1969.3,4.23092711]
[1746707006940,0.05068937,1969.5,1969.3,9.30877301]
[1746707007141,0.05068937,1969.5,1969.3,9.72018506]
[1746707007346,0.05068937,1969.8,1969.4,34.81554396]
[1746707007687,0.05068937,1969.8,1969.4,8.48885992]
[1746707007970,0.05068937,1969.8,1969.6,3.0]
[1746707008466,5.07711523,1969.7,1969.3,1.23092711]
[1746707008677,0.10145454,1969.6,1969.3,0.8089]
[1746707008967,0.05068937,1969.6,1969.3,0.8089]
[1746707009160,0.10145454,1969.6,1969.3,0.8089]
[1746707009672,0.05068937,1969.6,1969.4,3.0]
[1746707009873,0.05068937,1969.6,1969.4,4.0]
[1746707010084,0.05068937,1969.6,1969.4,9.12837536]
[1746707010470,0.05068937,1969.6,1969.4,9.07760038]
[1746707010783,0.05068937,1969.6,1969.4,9.07750471]
[1746707010944,0.05068937,1969.6,1969.5,0.90775047]
[1746707011756,0.05068937,1969.8,1969.5,5.98517936]
[1746707011968,0.05068937,1969.8,1969.5,0.90775047]
[1746707016486,0.05068937,1969.8,1969.6,1.0]
[1746707016782,0.05068937,1969.8,1969.6,4.0]
[1746707017382,0.05068937,1969.8,1969.6,4.99851714]
[1746707017775,0.05068937,1969.8,1969.7,31.48940323]
[1746707017973,0.05068937,1969.8,1969.7,3.0]
[1746707018292,5.17811206,1969.8,1969.7,3.0]
[1746707018691,5.07691526,1969.7,1969.6,1.0]
[1746707018855,0.05068937,1969.8,1969.6,1.0]
[1746707019053,0.05068937,1969.8,1969.6,4.0]
[1746707019251,0.05068937,1969.8,1969.6,1.0]
[1746707020388,5.07691526,1969.7,1969.6,1.0]
[1746707020774,5.17827676,1969.8,1969.6,1.0]
[1746707021684,0.10145454,1969.8,1969.6,1.0]
[1746707021898,5.17819893,1969.8,1969.6,1.0]
[1746707022190,1.37698937,1969.7,1969.6,1.0]
[1746707022380,6.45390463,1969.7,1969.6,1.0]
[1746707022898,0.05068937,1969.2,1968.9,0.7578]
[1746707023186,5.12923715,1969.1,1968.9,0.41326885]
[1746707023492,0.05068937,1969.1,1968.9,5.07897124]
[1746707023789,0.05068937,1969.1,1968.9,0.80789712]
[1746707024094,5.12915161,1969.1,1969.0,0.41326885]
[1746707024288,0.05068937,1969.1,1968.8,3.79791938]
[1746707024607,5.12916559,1969.1,1968.8,4.07692111]
[1746707024894,5.12915643,1969.2,1968.8,4.07692111]
[1746707024895,5.12966747,1968.9,1968.8,0.69227058]
[1746707025081,0.05068937,1968.9,1968.8,0.27900173]
[1746707025278,5.12966747,1968.9,1968.7,0.430697]
[1746707025578,0.05068937,1968.9,1968.7,0.430697]
[1746707026194,0.05068937,1968.9,1968.7,0.80823998]
[1746707026354,0.05068937,1969.5,1968.8,8.13003048]
[1746707026554,0.05068937,1969.5,1969.2,3.0]
[1746707026800,0.05068937,1969.5,1969.2,8.49274468]
[1746707026952,0.05068937,1969.5,1969.3,0.27947123]
[1746707027403,5.12828598,1969.5,1969.3,0.27947123]
[1746707027562,0.05068937,1969.5,1969.3,0.69401609]
[1746707030588,0.05068937,1969.5,1969.3,2.18429986]
[1746707031092,0.05068937,1969.5,1969.3,3.69401609]
[1746707032794,0.05068937,1969.5,1969.3,9.77401609]
[1746707032993,0.05068937,1969.5,1969.4,0.27947123]
[1746707033192,0.05068937,1969.5,1969.4,0.69401609]
[1746707033696,0.05068937,1969.7,1969.4,0.69401609]
[1746707034000,5.12812019,1969.5,1969.4,0.41454486]
[1746707034179,5.12812019,1969.5,1969.3,9.08]
[1746707034583,5.1284538,1969.4,1969.3,9.08]
[1746707034785,0.05068937,1969.4,1969.3,9.08]
[1746707035101,0.05068937,1969.4,1969.3,9.35946538]
[1746707035393,0.05068937,1969.4,1969.3,9.77401772]
[1746707035908,0.05068937,1969.4,1969.3,0.69401772]
[1746707037180,0.05068937,1969.4,1969.3,0.27946538]
[1746707037384,0.05068937,1969.4,1969.3,0.26917366]
[1746707037565,0.05068937,1969.4,1969.2,3.73450505]
[1746707038066,0.05068937,1969.4,1969.2,3.683726]
[1746707038616,0.05068937,1969.5,1969.2,9.78887199]
[1746707038902,0.05068937,1969.5,1969.2,9.51969833]
[1746707039115,0.05068937,1969.5,1969.3,0.41455234]
[1746707041117,0.05068937,1969.5,1969.4,3.0]
[1746707041623,0.05068937,1969.5,1969.3,0.41455234]
[1746707041783,0.05068937,1969.5,1969.4,3.0]
[1746707042282,0.05068937,1969.5,1969.4,3.41455234]
[1746707044289,0.05076517,1969.8,1969.7,3.0]
[1746707044492,5.07564024,1970.2,1969.7,9.13076288]
[1746707044685,5.07590149,1970.1,1969.7,3.0]
[1746707044918,5.07631941,1970.0,1969.7,3.0]
[1746707045123,5.07631941,1970.0,1969.7,3.41455234]
[1746707046225,5.12708458,1970.0,1969.7,3.36455234]
[1746707046523,5.07629314,1970.0,1969.7,3.36455234]
[1746707046684,5.12705831,1970.0,1969.7,3.36455234]
[1746707047262,0.05076517,1970.1,1969.7,3.36455234]
[1746707047748,5.07571361,1970.2,1969.7,11.33747124]
[1746707047930,5.07571361,1970.2,1969.7,11.28670701]
[1746707048145,5.07591617,1970.1,1969.7,11.63487488]
[1746707048359,5.07575647,1970.2,1969.7,11.63487488]
[1746707048513,0.05076517,1970.3,1969.9,3.8209]
[1746707048832,5.07472733,1970.6,1970.2,3.0]
[1746707049035,0.05076517,1970.6,1970.2,3.0]
[1746707049412,5.82566923,1970.3,1970.2,3.0]
[1746707049742,5.07639981,1969.9,1969.8,3.0]
[1746707049914,5.12716498,1969.9,1969.7,3.73817152]
[1746707050110,5.07665752,1969.8,1969.7,0.41393016]
[1746707050306,5.07665752,1969.8,1969.7,0.79242031]
[1746707050646,5.07665752,1969.8,1969.7,3.37849015]
[1746707050836,5.07653957,1969.9,1969.7,3.37849015]
[1746707051307,5.12703911,1970.0,1969.7,3.37849015]
[1746707051710,5.07652407,1969.9,1969.7,3.37849015]
[1746707051951,5.07652407,1969.9,1969.7,3.79236607]
[1746707053648,5.12742269,1969.8,1969.7,0.41387592]
[1746707053950,5.95462269,1969.8,1969.7,0.41387592]
[1746707054321,0.55,1969.7,1969.0,6.8566]
[1746707054522,5.07756856,1969.5,1969.0,6.90738062]
[1746707054728,5.07756856,1969.5,1969.1,0.41428316]
[1746707054938,5.07756856,1969.5,1969.1,0.77430173]
[1746707055135,0.05076517,1969.4,1969.1,0.77430173]
[1746707055332,5.1285721,1969.4,1969.1,0.77430173]
[1746707055527,0.05076517,1969.4,1969.1,3.77430173]
[1746707055727,5.07771916,1969.4,1969.1,3.63931243]
[1746707056219,0.05076517,1969.6,1969.1,3.69009307]
[1746707056420,5.07753233,1969.5,1969.1,5.36444185]
[1746707056638,5.07753233,1969.5,1969.1,8.63064362]
[1746707056925,0.8035,1970.2,1969.5,8.845932]
[1746707057143,5.07648209,1969.9,1969.6,3.0]
[1746707057339,5.0760107,1970.1,1969.5,8.84582993]
[1746707057562,5.87926702,1970.2,1969.7,3.0]
[1746707057866,5.07602648,1970.1,1969.7,0.37400774]
[1746707058047,0.8035,1970.2,1969.5,9.1756359]
[1746707058247,5.07549567,1970.3,1969.8,3.0]
[1746707058558,5.07549567,1970.3,1969.8,8.40662038]
[1746707058730,5.07549567,1970.3,1969.8,10.08158351]
[1746707059431,5.07549567,1970.3,1969.9,0.27929386]
[1746707061075,5.07518729,1970.4,1969.9,0.27929386]
[1746707061260,5.07518729,1970.4,1970.0,3.0]
[1746707061454,10.1505479,1970.4,1969.9,0.27929386]
[1746707061658,5.07518729,1970.4,1969.9,0.27929386]
[1746707061857,5.07518729,1970.4,1969.9,4.28744185]
[1746707062254,5.07424467,1970.8,1970.3,3.26620177]
[1746707062564,5.07511165,1970.4,1970.3,3.0]
[1746707062741,5.07511165,1970.4,1970.0,0.7641]
[1746707062742,5.07561128,1970.3,1970.0,3.0]
[1746707062938,5.07588447,1970.1,1970.0,3.0]
[1746707063337,5.07546027,1970.3,1970.0,3.0]
[1746707063536,7.1524,1970.6,1970.0,3.0]
[1746707063537,5.07528065,1970.4,1970.0,3.0]
[1746707063863,5.07545899,1970.3,1970.0,3.0]
[1746707064069,5.07521289,1970.4,1970.0,3.27899122]
[1746707064367,5.07538823,1970.3,1970.0,3.27899122]
[1746707064744,5.07527305,1970.4,1970.0,3.27899122]
[1746707064943,0.7714,1970.6,1970.1,8.12654501]
[1746707065270,5.07514818,1970.4,1970.1,3.0507566]
[1746707065572,5.07502529,1970.5,1970.1,3.0507566]
[1746707065751,5.07502529,1970.5,1970.1,9.35899122]
[1746707065982,5.84610324,1970.6,1970.1,10.60443061]
[1746707066174,5.84610324,1970.6,1970.1,15.6801722]
[1746707066346,5.07469552,1970.6,1970.1,15.62941943]
[1746707066871,5.07395999,1970.9,1970.4,3.0]
[1746707067072,5.07420945,1970.8,1970.4,6.08]
[1746707067277,11.45495811,1970.9,1970.5,8.07476474]
[1746707067664,5.83134502,1971.0,1970.5,13.14952573]
[1746707067836,5.84911204,1971.3,1970.7,3.7963]
[1746707068037,5.07395439,1970.9,1970.7,3.7963]
[1746707068235,5.07395439,1970.9,1970.6,3.0]
[1746707068669,5.07371582,1971.0,1970.6,3.0]
[1746707069051,12.22902246,1971.3,1970.6,3.0]
[1746707069280,5.07371509,1971.0,1970.6,14.1545679]
[1746707069571,5.07371509,1971.0,1970.6,14.1544822]
[1746707069873,5.07371509,1971.0,1970.6,14.15451963]
[1746707070244,5.07318997,1971.2,1970.8,5.07406338]
[1746707070464,7.1562,1971.3,1970.6,14.15447223]
[1746707070634,5.07374609,1971.0,1970.6,14.53537323]
[1746707070831,5.07347515,1971.1,1970.7,5.07432435]
[1746707071035,5.07317907,1971.2,1970.7,5.07419624]
[1746707071236,5.07317907,1971.2,1970.8,5.07399552]
[1746707071436,5.84917341,1971.3,1970.9,8.07382369]
[1746707071636,5.07305429,1971.2,1970.8,5.07386905]
[1746707071864,12.22914053,1971.3,1970.9,3.0]
[1746707072070,12.22914053,1971.3,1970.6,3.380901]
[1746707072071,5.07339799,1971.1,1970.6,3.380901]
[1746707072275,5.07369881,1971.0,1970.6,3.380901]
[1746707072649,7.1562,1971.3,1970.6,3.380901]
[1746707072848,5.07417794,1970.8,1970.6,3.380901]
[1746707073086,5.07417794,1970.8,1970.6,0.380901]
[1746707073087,5.07433906,1970.7,1970.6,0.380901]
[1746707073258,5.07524372,1970.4,1970.2,6.08]
[1746707073461,12.25342933,1970.8,1970.1,6.08]
[1746707073764,5.07475373,1970.6,1970.2,3.0]
[1746707074369,5.07503115,1970.5,1970.2,3.0]
[1746707074567,5.07469556,1970.6,1970.2,3.0]
[1746707075282,5.07469556,1970.6,1970.2,8.07558656]
[1746707075644,5.07446741,1970.7,1970.2,13.15106407]
[1746707075854,5.07446741,1970.7,1970.2,10.36369331]
[1746707076378,5.07446741,1970.7,1970.3,0.05075284]
[1746707076585,5.07446741,1970.7,1970.3,5.12609241]
[1746707076884,5.07464843,1970.6,1970.2,5.28825926]
[1746707077072,5.07516769,1970.4,1970.2,3.0]
[1746707077882,5.07497089,1970.5,1970.2,3.0]
[1746707078185,5.07474015,1970.6,1970.2,8.07553894]
[1746707078394,5.07442636,1970.7,1970.2,8.07561195]
[1746707078594,6.379,1970.8,1970.4,8.07501866]
[1746707078896,5.07423003,1970.8,1970.4,5.07509845]
[1746707079056,11.45299145,1970.9,1970.5,3.83]
[1746707079812,5.07410921,1970.8,1970.5,3.83]
[1746707079956,5.07467342,1970.6,1970.3,3.0]
[1746707080161,0.8264,1970.5,1970.1,0.38532675]
[1746707080492,5.07511165,1970.4,1969.8,6.08]
[1746707080791,5.0759856,1970.1,1969.8,6.08]
[1746707081364,10.1516386,1970.2,1969.8,6.08]
[1746707081559,10.15164304,1970.2,1969.8,6.08]
[1746707081760,5.07578137,1970.2,1969.8,6.08]
[1746707081962,5.07578137,1970.2,1969.9,3.0]
[1746707082286,5.07636001,1970.0,1969.5,11.15725893]
[1746707082495,5.07568382,1970.2,1969.6,6.08]
[1746707082666,5.0765287,1969.9,1969.6,6.08]
[1746707083198,5.07623391,1970.0,1969.7,3.0]
[1746707083363,5.07602942,1970.1,1969.7,3.0]
[1746707083565,10.15213943,1970.1,1969.7,3.0]
[1746707083797,5.07616207,1970.0,1969.7,3.0]
[1746707083961,11.45604859,1970.1,1969.7,3.05076644]
[1746707084702,16.53217457,1970.1,1969.7,3.05076644]
[1746707084914,16.53215907,1970.1,1969.7,3.05076644]
[1746707085116,11.45604859,1970.1,1969.7,3.05076644]
[1746707085312,11.45604859,1970.1,1969.7,10.12077288]
[1746707085613,11.4558863,1970.1,1969.7,5.04386869]
[1746707085811,5.0758863,1970.1,1969.8,0.7979]
[1746707086416,11.45551432,1970.3,1969.8,0.7979]
[1746707086622,6.38,1970.3,1969.9,8.07639981]
[1746707086822,11.45537038,1970.3,1969.9,8.07639981]
[1746707086978,5.07537038,1970.3,1969.9,3.0]
[1746707087178,5.07537038,1970.3,1969.9,8.07639709]
[1746707087411,11.45523395,1970.4,1970.0,11.34227338]
[1746707087907,10.15003946,1970.5,1970.2,3.0]
[1746707088112,5.07459656,1970.6,1970.2,3.0]
[1746707088308,5.07555081,1970.3,1970.1,3.0]
[1746707089086,5.07526805,1970.4,1970.1,3.0]
[1746707089586,5.07498327,1970.5,1970.2,5.07559497]
[1746707089925,11.45475689,1970.6,1970.2,5.07559497]
[1746707090398,11.45475689,1970.6,1970.2,5.1263459]
[1746707090999,5.0749815,1970.5,1970.1,11.34190475]
[1746707091497,5.0749815,1970.5,1970.2,5.12637345]
[1746707091700,11.45477319,1970.6,1970.2,5.12637345]
[1746707091899,10.14961589,1970.6,1970.2,5.12637345]
[1746707092215,5.07492142,1970.5,1970.2,5.12636018]
[1746707092417,5.07492142,1970.5,1970.2,5.07560925]
[1746707093186,6.366,1970.6,1970.2,5.12636018]
[1746707093391,11.44077421,1970.6,1970.2,5.12636018]
[1746707093638,5.07487818,1970.5,1970.2,5.12636018]
[1746707093932,5.07487818,1970.5,1970.2,5.07560925]
[1746707094791,5.07487818,1970.5,1970.1,17.42188093]
[1746707095027,5.07487818,1970.5,1970.1,17.42204704]
[1746707095028,5.07493992,1970.5,1970.1,17.42204704]
[1746707095897,5.07493992,1970.5,1970.1,17.42191349]
[1746707096104,6.366,1970.6,1970.4,3.0]
[1746707096492,11.44063851,1970.6,1970.4,3.0]
[1746707096687,11.44063851,1970.6,1970.2,8.86296607]
[1746707096931,6.366,1970.6,1970.4,3.0]
[1746707097236,5.07415737,1970.8,1970.4,12.14879596]
[1746707097436,5.07435192,1970.7,1970.3,3.0]
[1746707097588,5.07433906,1970.7,1970.2,3.7875]
[1746707097793,5.82884158,1970.8,1970.2,3.7875]
[1746707098124,5.07499162,1970.5,1970.2,3.0]
[1746707098293,5.07536923,1970.3,1970.1,6.08]
[1746707098634,5.07522942,1970.4,1970.1,6.08]
[1746707098822,11.44022942,1970.4,1970.1,6.08]
[1746707099424,11.44022942,1970.4,1970.2,3.0]
[1746707099425,12.34451242,1970.4,1970.2,3.0]
[1746707099593,5.90346923,1970.3,1970.2,3.0]
[1746707100139,5.07600808,1970.1,1969.7,11.15678718]
[1746707100291,5.07614213,1970.0,1969.9,3.0]
[1746707100489,5.07614213,1970.0,1969.7,3.0]
[1746707100711,5.07665059,1969.9,1969.6,6.08]
[1746707100916,5.07627786,1970.0,1969.6,6.08]
[1746707101112,5.07617218,1970.0,1969.6,11.15704935]
[1746707101324,5.07640449,1969.9,1969.7,3.0]
[1746707101495,5.0762346,1970.0,1969.7,3.0]
[1746707101692,5.07597548,1970.1,1969.7,8.98486076]
[1746707101997,5.07580326,1970.2,1969.8,5.07654889]
[1746707102217,5.07580326,1970.2,1969.9,3.0]
[1746707102420,5.07600231,1970.1,1969.8,3.0]
[1746707102620,5.07621474,1970.0,1969.7,3.0]
[1746707103032,5.07599581,1970.1,1969.7,8.07690089]
[1746707103219,6.366,1970.2,1969.9,5.07624968]
[1746707103415,5.07526273,1970.4,1970.0,3.0]
[1746707103619,11.44126273,1970.4,1970.0,8.0759683]
[1746707103929,6.366,1970.4,1970.2,3.0]
[1746707104293,6.366,1970.4,1970.2,8.07559583]
[1746707104499,6.366,1970.4,1970.1,8.3548393]
[1746707104694,11.4409407,1970.5,1970.1,3.27917476]
[1746707105002,5.07562683,1970.2,1970.1,3.27917476]
[1746707105941,5.07562683,1970.2,1970.1,3.0]
[1746707106436,5.07553619,1970.3,1970.1,3.0]
[1746707106625,5.07524281,1970.4,1970.1,3.0]
[1746707106929,11.44098143,1970.5,1970.1,8.07583711]
[1746707107111,5.07512014,1970.4,1970.1,3.0]
[1746707107515,5.07525801,1970.4,1970.1,3.0]
[1746707107835,5.07554195,1970.3,1970.0,3.0]
[1746707108037,5.07584774,1970.2,1969.9,3.0]
[1746707108245,5.07584774,1970.2,1969.8,11.97155712]
[1746707108246,5.07639981,1969.9,1969.8,6.08]
[1746707108453,5.07639981,1969.9,1969.5,12.36168283]
[1746707108651,6.38191165,1970.4,1969.5,7.28442469]
[1746707108823,5.07717303,1969.6,1969.5,0.38312469]
[1746707109163,5.07768863,1969.4,1969.3,0.27953929]
[1746707109362,5.07765753,1969.5,1969.3,0.27953929]
[1746707109506,5.0772952,1969.6,1969.2,6.17901471]
[1746707110037,5.07760048,1969.5,1969.2,0.27953929]
[1746707110251,12.19946457,1969.8,1969.2,3.66593777]
[1746707110451,5.07794647,1969.3,1969.2,0.27953929]
[1746707110608,5.90942497,1969.4,1969.0,4.27381364]
[1746707111009,5.07808985,1969.3,1969.1,3.0]
[1746707111205,5.07820434,1969.2,1969.0,4.27381364]
[1746707111532,5.07820434,1969.2,1969.1,3.0]
[1746707111745,10.15663036,1969.2,1969.0,4.27381364]
[1746707111926,5.07820434,1969.2,1969.1,3.0]
[1746707112127,5.07820434,1969.2,1969.0,0.3826892]
[1746707112335,5.07820434,1969.2,1968.9,3.0]
[1746707112529,5.07847174,1969.1,1968.9,3.0]
[1746707112708,11.44507684,1969.3,1968.9,3.0]
[1746707112910,5.07837562,1969.2,1968.9,3.0]
[1746707113210,5.07820434,1969.2,1968.9,3.0]
[1746707113421,5.07820434,1969.2,1968.7,20.31808145]
[1746707113422,5.07923608,1968.8,1968.7,20.31808145]
[1746707113620,5.07923608,1968.8,1968.7,14.23808145]
[1746707113952,5.0791252,1968.9,1968.7,14.23808145]
[1746707114445,5.07911495,1968.9,1968.7,14.61052345]
[1746707114646,5.07911495,1968.9,1968.8,3.0]
[1746707114943,5.88521495,1968.9,1968.7,14.61052345]
[1746707115140,5.07923608,1968.8,1968.7,14.61052345]
[1746707115347,5.07923608,1968.8,1968.7,17.61052345]
[1746707115703,5.07923608,1968.8,1968.7,17.23808145]
[1746707115919,11.44623608,1968.8,1968.7,14.23808145]
[1746707117255,5.62923608,1968.8,1968.7,14.23808145]
[1746707117410,11.99723608,1968.8,1968.7,14.23808145]
[1746707117745,11.44723608,1968.8,1968.7,14.23808145]
[1746707118652,5.07923608,1968.8,1968.7,14.23808145]
[1746707118819,11.99923608,1968.8,1968.7,14.23808145]
[1746707119620,12.82703608,1968.8,1968.7,14.23808145]
[1746707120749,6.45703608,1968.8,1968.7,14.23808145]
[1746707120920,12.27703608,1968.8,1968.7,14.23808145]
[1746707121655,12.27703608,1968.8,1968.7,17.23808145]
[1746707122541,12.27703608,1968.8,1968.7,14.23808145]
[1746707122863,12.82703608,1968.8,1968.7,14.23808145]
[1746707123226,12.27703608,1968.8,1968.7,14.23808145]
[1746707124068,5.07923608,1968.8,1968.7,17.23808145]
[1746707124278,11.42723608,1968.8,1968.7,17.23808145]
[1746707125129,11.42723608,1968.8,1968.7,14.23808145]
[1746707126222,12.17933608,1968.8,1968.7,14.23808145]
[1746707127855,12.72933608,1968.8,1968.7,14.23808145]
[1746707129178,5.08259212,1967.5,1967.4,6.08]
[1746707129467,5.08259212,1967.5,1967.1,5.91478315]
[1746707129468,5.08263159,1967.5,1967.1,5.91478315]
[1746707129679,11.43147944,1967.6,1967.1,7.44088164]
[1746707129964,6.349,1967.6,1967.1,2.35729849]
[1746707130171,11.43138593,1967.6,1967.2,5.08322372]
[1746707130682,11.43138593,1967.6,1967.3,3.0]
[1746707130847,11.43138593,1967.6,1967.2,5.0833523]
[1746707131030,0.8003,1968.0,1967.3,3.26620177]
[1746707131232,11.43243375,1967.6,1967.3,3.26620177]
[1746707131431,11.43243375,1967.6,1967.4,3.0]
[1746707131933,6.35,1967.6,1967.3,3.26620177]
[1746707132342,6.35,1967.6,1967.2,3.0]
[1746707132548,16.51507411,1967.6,1967.2,3.0]
[1746707132749,11.43251871,1967.6,1967.2,3.0]
[1746707133771,6.35,1967.6,1967.2,9.38527529]
[1746707133966,11.43234047,1967.6,1967.2,9.38527529]
[1746707134174,6.35,1967.6,1967.2,9.38527529]
[1746707134371,11.43249876,1967.6,1967.2,4.30204493]
[1746707134549,11.43249876,1967.6,1967.2,9.7747482]
[1746707134550,6.35,1967.6,1967.2,9.7747482]
[1746707134747,0.8164,1967.5,1967.2,1.30204493]
[1746707134962,5.89903558,1967.5,1966.7,6.510697]
[1746707135172,5.0835049,1967.2,1966.8,3.0]
[1746707135494,5.08347006,1967.2,1966.9,0.7951]
[1746707135796,11.43487429,1967.1,1966.7,0.430697]
[1746707135947,6.351,1967.1,1966.8,0.7951]
[1746707136142,5.08408342,1967.0,1966.7,0.430697]
[1746707136386,5.08423633,1966.9,1966.7,0.430697]
[1746707136681,5.08440105,1966.8,1966.7,0.430697]
[1746707137465,5.08420804,1966.9,1966.7,0.430697]
[1746707137900,5.08435865,1966.9,1966.7,0.430697]
[1746707138393,5.08397108,1967.0,1966.7,0.430697]
[1746707138606,5.08376421,1967.1,1966.7,3.430697]
[1746707138784,5.08388456,1967.0,1966.7,0.430697]
[1746707139165,6.352,1967.1,1966.7,0.430697]
[1746707139365,5.0842547,1966.9,1966.7,0.430697]
[1746707139600,6.353,1967.0,1966.7,9.34500974]
[1746707139775,11.43690427,1967.0,1966.7,4.260397]
[1746707139977,5.86194255,1966.9,1966.8,0.11706024]
[1746707140479,6.41194255,1966.9,1966.8,0.11706024]
[1746707140999,6.41194255,1966.9,1966.7,0.430697]
[1746707141000,5.63414255,1966.9,1966.7,0.430697]
[1746707141169,6.41300105,1966.8,1966.7,0.430697]
[1746707141877,6.42740105,1966.8,1966.7,0.430697]
[1746707142199,12.78040105,1966.8,1966.7,0.430697]
[1746707142575,6.42740105,1966.8,1966.7,0.430697]
[1746707142876,12.78040105,1966.8,1966.7,0.430697]
[1746707143075,22.90040105,1966.8,1966.7,0.430697]
[1746707143275,5.08687967,1965.9,1965.7,0.8308]
[1746707143475,11.44087967,1965.9,1965.7,0.8308]
[1746707143882,5.08698748,1965.8,1965.5,0.8308]
[1746707144082,5.08698748,1965.8,1965.5,3.8308]
[1746707144376,6.354,1965.9,1965.6,5.20147818]
[1746707144701,5.08626913,1966.1,1965.7,3.0]
[1746707144906,11.44026913,1966.1,1965.7,8.08715101]
[1746707145116,11.44026913,1966.1,1965.6,11.35354967]
[1746707145408,5.08660622,1966.0,1965.5,3.8308]
[1746707145570,5.08688733,1965.9,1965.6,0.11401918]
[1746707145775,5.08661731,1966.0,1965.6,0.11401918]
[1746707146002,5.08661731,1966.0,1965.7,3.0]
[1746707146316,5.08637064,1966.1,1965.7,8.08709839]
[1746707146523,6.355,1966.0,1965.7,8.08711654]
[1746707146813,6.355,1966.0,1965.7,3.0]
[1746707147015,6.355,1966.0,1965.8,5.08691115]
[1746707147216,6.355,1966.0,1965.9,3.0]
[1746707147381,5.08612071,1966.2,1965.9,3.0]
[1746707147581,6.355,1966.1,1966.0,0.7725]
[1746707147805,5.08579844,1966.3,1966.0,0.7725]
[1746707147806,11.44089812,1966.3,1966.0,0.7725]
[1746707148015,6.355,1966.4,1966.2,3.26620177]
[1746707148196,5.08477494,1966.7,1966.3,8.08558068]
[1746707148381,5.08391014,1967.0,1966.7,3.0]
[1746707148382,5.08405468,1967.0,1966.7,3.0]
[1746707148703,5.08372864,1967.1,1966.7,3.0]
[1746707148905,5.84734098,1967.2,1966.8,3.0]
[1746707149120,11.43926805,1967.3,1966.9,0.7725]
[1746707149614,11.43937032,1967.2,1966.9,3.7725]
[1746707149980,6.356,1967.2,1966.9,8.85648898]
[1746707150181,6.356,1967.3,1966.9,3.7725]
[1746707150385,5.0837898,1967.1,1966.7,3.0]
[1746707150624,5.08402651,1967.0,1966.7,3.0]
[1746707150992,6.356,1967.3,1966.7,3.0]
[1746707151186,6.356,1967.3,1966.7,9.07151186]
[1746707151187,10.16710992,1967.2,1966.7,9.07151186]
[1746707151384,5.08351947,1967.2,1966.7,9.07151186]
[1746707151706,5.08373427,1967.1,1966.7,9.07151186]
[1746707152228,5.08388425,1967.0,1966.7,3.0]
[1746707152432,5.08404713,1967.0,1966.7,3.0]
[1746707152631,11.43848691,1967.2,1966.9,3.0]
[1746707152836,11.43848691,1967.2,1966.7,3.0]
[1746707153020,5.08348691,1967.2,1966.7,3.0]
[1746707153203,6.331,1967.1,1966.8,8.08436251]
[1746707153409,6.331,1967.1,1966.7,8.97710874]
[1746707153592,11.41474228,1967.1,1966.7,8.97710874]
[1746707154107,6.331,1967.1,1966.8,8.0843508]
[1746707154434,0.8099,1967.4,1967.1,3.0]
[1746707154435,6.331,1967.2,1967.1,3.0]
[1746707154730,11.4134546,1967.6,1967.1,8.08348415]
[1746707155104,11.4134546,1967.6,1967.3,3.0]
[1746707155999,5.08260249,1967.5,1967.1,5.08358216]
[1746707156200,11.41338946,1967.6,1967.2,8.08329705]
[1746707156625,5.08259743,1967.5,1967.1,8.6692168]
[1746707156809,11.41350228,1967.6,1967.3,3.0]
[1746707157212,5.08170972,1967.9,1967.4,3.8067]
[1746707157417,5.08246381,1967.6,1967.4,0.8067]
[1746707158097,5.08246381,1967.6,1967.2,3.8276]
[1746707158299,5.08268862,1967.5,1967.2,0.8276]
[1746707158493,5.08249694,1967.6,1967.2,0.8276]
[1746707158838,5.08249694,1967.6,1967.3,3.0]